Workbook

Sheet TDSheet
A1: Утверждаю
A2: Руководитель учреждения | H2: Исимова Б.А.
A5: "_______" ____________________ 20 г.
R7: Форма по ОКУД 0504202
J8: МЕНЮ-ТРЕБОВАНИЕ НА ВЫДАЧУ ПРОДУКТОВ ПИТАНИЯ
K9: 2021-11-11
A12: Учреждение
A13: Структурное подразделение
A14: Материально ответственное лицо
A16: Коды категорий довольствующихся (группы) | F16: Плановая стоимость одного дня, руб | H16: Количество довольствующихся по плановой стоимости одного дня | I16: Плановая стоимость на всех довольствующихся, руб | J16: Фактическая стоимость, руб
A17: суммарных категорий
A18: 1 | F18: 3
A19: горячее питание | F19: 64.27 | H19: 28 | I19: =SUM(F19*H19) -> 1799.56 | J19: =SUM(T44) -> 1785.98
G20: Всего
A22: Продукты питания | E22: Единица измерения | F22: Количество продуктов питания, подлежащих закладке | R22: Расход продуктов питания (количество)
A23: наименование | D23: Цена | F23: Завтрак
R24: операция
F25: отварные макароны с сосисками | G25: чай | H25: хлеб с маслом | I25: яблоко | R25: на одного ребенка | S25: на всех детей | T25: Сумма
A27: 1 | D27: 2 | E27: 3 | G27: 5 | H27: 6 | I27: 7 | R27: 17 | S27: 18 | T27: 19
A28: Количество порций
A29: Выход - вес порции
A30: макароны | D30: 60.00 | E30: кг | F30: 0.060 | R30: =SUM(F30:Q30) -> 0.060 | S30: =SUM(R30*H19) -> 1.680 | T30: =S30*D30 -> 100.80
A31: сосиски | D31: 280.00 | E31: кг | F31: 0.075 | R31: 0.075 | S31: =R31*H$19 -> 2.100 | T31: 588.00
A32: масло сливочное | D32: 610.00 | H32: 0.010 | R32: 0.010 | S32: 0.280 | T32: 170.80
A33: сахар | D33: 68.00 | G33: 0.010 | R33: =SUM(G33:Q33) -> 0.010 | S33: 0.280 | T33: 19.04
A34: лук | D34: 45.00 | E34: кг | F34: 0.005 | R34: 0.005 | S34: 0.140 | T34: 6.30
A35: хлеб пшеничный | D35: 49.00 | E35: кг | H35: 0.080 | R35: 0.080 | S35: 2.240 | T35: 109.76
A36: масло раст | D36: 185.00 | E36: кг | F36: 0.010 | R36: 0.010 | S36: 0.280 | T36: 51.80
A37: яблоко | D37: 160.00 | E37: кг | I37: 0.150 | R37: 0.150 | S37: 4.200 | T37: 672.00
A38: картофель | D38: 50.00 | E38: кг | R38: 0.000 | S38: 0.000 | T38: 0.00
A39: морковь | D39: 60.00 | F39: 0.010 | R39: 0.010 | S39: 0.280 | T39: 16.80
A40: яйцо | D40: 12.00 | T40: 0.00
A41: соль | D41: 12.00 | F41: 0.005 | R41: =SUM(F41:Q41) -> 0.005 | S41: =R41*H$19 -> 0.140 | T41: 1.68
A42: чай | D42: 600.00 | G42: 0.001 | R42: =SUM(F42:Q42) -> 0.001 | S42: =R42*H$19 -> 0.028 | T42: 16.80
A43: томат | D43: 230.00 | F43: 0.005 | R43: =SUM(F43:Q43) -> 0.005 | S43: =R43*H$19 -> 0.140 | T43: 32.20
A44: Итого | R44: =SUM(R30:R43) -> 0.421 | S44: =SUM(S30:S43) -> 11.788 | T44: =SUM(T30:T43) -> 1785.98
A47: Бухгалтер | C47: ____________ | E47: ______________________________ | I47: Повар | J47: _____________ | K47: Кенесариева Э.Д. | N47: Кладовщик | P47: Хамзаева Э.Д.
